bitfinex/quotes_ETHUSD_20260203
["timestamp","ask_amount","ask_price","bid_price","bid_amount"]
[1770081774218,0.0011,2350.6,2349.8,0.01288604]
[1770081774791,0.0011,2350.6,2349.9,1.06387505]
[1770081775101,0.0011,2350.6,2350.1,0.01288604]
[1770081776314,0.0011,2350.8,2350.4,0.01288604]
[1770081776812,0.0011,2350.8,2350.5,1.06360348]
[1770081777119,5.77084521,2351.4,2350.5,1.06360348]
[1770081777289,5.77084521,2351.8,2350.5,1.06360348]
[1770081777495,0.57708452,2351.7,2350.7,0.01288604]
[1770081779126,1.06292743,2352.0,2350.8,1.06346775]
[1770081779293,5.77084521,2352.9,2351.4,0.01288604]
[1770081779489,5.77084521,2352.9,2351.9,0.01288604]
[1770081779694,5.77084521,2352.9,2351.4,0.01288604]
[1770081779695,5.5486919,2352.7,2352.3,0.01288604]
[1770081779919,0.57708452,2352.8,2352.3,0.01288604]
[1770081780115,5.77084521,2353.1,2352.0,0.01288604]
[1770081780315,6.83327384,2353.1,2351.4,0.01288604]
[1770081780549,6.83327384,2353.1,2351.7,0.01288604]
[1770081780550,6.83329379,2353.1,2351.7,0.01288604]
[1770081780793,5.77084521,2352.9,2351.3,0.01288604]
[1770081781113,5.77084521,2352.9,2351.7,0.01288604]
[1770081781308,6.34792973,2352.9,2352.0,0.01288604]
[1770081781507,0.57708452,2352.9,2352.0,0.01288604]
[1770081781709,6.8332152,2353.3,2351.8,1.06301556]
[1770081781922,5.77084521,2353.3,2352.3,0.01288604]
[1770081782087,5.77084521,2353.3,2352.0,0.01288604]
[1770081782288,0.892,2353.9,2351.8,1.06301556]
[1770081782289,5.77084521,2353.8,2352.7,0.01288604]
[1770081782628,5.77084521,2354.2,2353.3,0.01288604]
[1770081782792,0.57708452,2354.1,2353.3,0.01288604]
[1770081782992,0.57708452,2354.1,2351.9,0.892]
[1770081783210,6.34792973,2354.1,2352.8,1.06256375]
[1770081783407,5.77084521,2354.0,2352.7,0.01288604]
[1770081783606,5.77084521,2354.0,2352.7,1.06260844]
[1770081783922,5.77084521,2353.8,2352.6,1.06262981]
[1770081784124,5.77084521,2353.8,2352.7,1.06260788]
[1770081784432,5.77084521,2353.8,2352.2,4.25132676]
[1770081784433,5.77084521,2353.8,2352.3,1.06275191]
[1770081784594,5.77084521,2353.8,2352.2,4.25127337]
[1770081784595,5.77084521,2353.4,2352.1,1.06285073]
[1770081784795,0.0011,2352.8,2352.1,1.06285073]
[1770081785122,0.0011,2352.8,2352.3,1.06276626]
[1770081785330,0.0011,2352.8,2352.1,0.01288604]
[1770081785996,0.0011,2353.0,2352.7,0.01288604]
[1770081786194,0.0011,2353.0,2352.4,0.01288604]
[1770081786597,0.0011,2353.0,2352.7,0.01288604]
[1770081786996,0.0011,2353.0,2352.1,0.01288604]
[1770081787204,0.0011,2353.0,2352.2,1.06283479]
[1770081788831,0.0011,2353.0,2352.3,0.01288604]
[1770081789128,0.0011,2353.0,2352.2,1.06283479]
[1770081789331,0.0011,2353.0,2352.3,0.01288604]
[1770081790516,0.0011,2353.0,2352.2,0.5314174]
[1770081790919,0.0011,2353.0,2352.3,0.01288604]
[1770081791430,0.0011,2353.0,2352.4,1.06274443]
[1770081793746,0.0011,2353.0,2352.3,1.06277345]
[1770081793911,5.77194521,2353.0,2352.3,1.06277345]
[1770081794113,6.34803973,2352.9,2351.9,4.2517639]
[1770081794314,6.34803973,2352.9,2352.1,1.06287331]
[1770081794517,6.34803973,2352.9,2351.6,0.892]
[1770081794837,6.34803973,2352.9,2351.7,1.06305809]
[1770081795025,6.34803973,2352.9,2351.5,1.06311409]
[1770081795204,5.77084521,2352.5,2351.1,1.06333205]
[1770081795842,5.77084521,2352.5,2351.3,0.01288604]
[1770081796041,5.77084521,2352.5,2351.1,1.06333205]
[1770081796216,5.77084521,2352.5,2351.1,1.07621809]
[1770081796733,5.77084521,2352.5,2351.3,0.001]
[1770081796935,5.77084521,2352.3,2351.3,0.001]
[1770081797308,5.77084521,2351.9,2350.5,1.06360237]
[1770081797510,5.77084521,2351.7,2350.6,1.06355559]
[1770081798503,5.77084521,2351.7,2350.3,0.01288604]
[1770081798708,5.77084521,2351.5,2350.6,1.06354944]
[1770081799346,0.57708452,2351.6,2351.1,0.01288604]
[1770081799534,5.77084521,2351.9,2350.7,0.01288604]
[1770081799929,6.83381812,2351.9,2350.5,1.06360348]
[1770081803442,6.83381812,2351.9,2350.4,1.06362449]
[1770081804323,5.68619858,2351.7,2350.4,1.06362449]
[1770081804528,1.06297291,2351.9,2350.1,4.2690213]
[1770081804529,5.68619858,2351.5,2350.1,4.25607367]
[1770081804858,5.68619858,2351.5,2350.3,1.06366]
[1770081805053,5.68619858,2351.5,2350.4,1.06364141]
[1770081805254,5.68619858,2351.5,2350.3,1.06365924]
[1770081805454,5.68619858,2351.3,2350.2,1.48931449]
[1770081805653,5.68619858,2351.1,2350.2,1.07659316]
[1770081806154,5.68619858,2351.5,2350.2,1.07659316]
[1770081806358,5.68619858,2351.5,2350.5,0.01288604]
[1770081807325,5.68619858,2351.5,2350.2,1.07659316]
[1770081810075,5.68619858,2351.5,2350.7,0.001]
[1770081810275,4.78355072,2351.8,2350.7,0.001]
[1770081810276,5.68619858,2351.3,2350.7,0.001]
[1770081810578,5.68619858,2351.3,2350.5,0.001]
[1770081811276,5.68619858,2351.1,2350.1,0.001]
[1770081811771,5.68619858,2350.9,2350.1,0.001]
[1770081811941,5.68619858,2350.7,2350.1,0.001]
[1770081812631,0.67495759,2350.8,2349.0,1.06524492]
[1770081812632,5.68619858,2350.2,2349.0,1.06524492]
[1770081812852,5.68619858,2350.2,2349.3,1.06411968]
[1770081813230,5.68619858,2350.2,2349.1,1.06420339]
[1770081813434,6.25481844,2350.1,2349.1,0.53222698]
[1770081813685,6.25481844,2350.1,2349.0,0.001]
[1770081813956,5.68619858,2350.0,2349.0,0.001]
[1770081816534,6.75003731,2350.0,2349.0,0.001]
[1770081819035,5.68619858,2350.0,2349.0,0.001]
[1770081819456,6.75004653,2350.0,2349.0,0.001]
[1770081819634,6.84359713,2349.9,2349.0,0.001]
[1770081820363,1.06392033,2349.8,2349.0,0.001]
[1770081820546,6.75011891,2349.8,2349.0,0.001]
[1770081821255,5.68619858,2349.8,2349.0,0.001]
[1770081823669,5.68619858,2349.8,2349.2,0.001]
[1770081823964,0.79074762,2349.7,2349.2,0.001]
[1770081824571,0.0011,2349.8,2349.2,0.001]
[1770081830367,5.73639319,2349.8,2349.2,0.001]
[1770081834044,0.0011,2349.8,2349.2,0.001]
[1770081835782,0.0011,2349.8,2349.2,5.74925247]
[1770081837053,0.0011,2349.8,2349.4,0.001]
[1770081837466,0.0011,2349.6,2349.4,0.001]
[1770081837869,0.0011,2349.8,2349.4,1.10809863]
[1770081838150,0.0011,2350.0,2349.4,1.10809863]
[1770081839665,0.0011,2350.0,2349.5,1.06405618]
[1770081841382,1.12744896,2350.7,2349.7,5.74825247]
[1770081841685,0.91780036,2350.6,2349.8,0.57611385]
[1770081841857,0.91780036,2350.5,2349.9,1.06387505]
[1770081842064,6.86384215,2350.8,2349.9,1.06387505]
[1770081842265,0.91796065,2350.7,2349.9,1.06387505]
[1770081842466,0.91796065,2350.6,2349.9,1.06387505]
[1770081842667,0.91796065,2350.5,2350.0,0.58954891]
[1770081842880,6.86384215,2350.8,2350.0,0.58954891]
[1770081843068,0.91753032,2350.7,2350.0,0.58954891]
[1770081843273,6.65282351,2350.6,2349.8,1.64003013]
[1770081843470,5.73529319,2350.4,2349.4,4.25739159]
[1770081843885,5.73529319,2350.2,2349.4,0.001]
[1770081845607,6.86274215,2350.5,2349.4,0.001]
[1770081845764,0.91713515,2350.4,2349.4,0.001]
[1770081845964,0.91713515,2350.3,2349.4,0.001]
[1770081846271,0.91706546,2350.2,2349.4,0.001]
[1770081846475,5.73529319,2350.1,2349.4,0.001]
[1770081847085,1.12744896,2350.6,2349.5,0.01288604]
[1770081847288,0.9169502,2350.5,2349.5,0.01288604]
[1770081847588,6.86274215,2350.7,2349.5,0.01288604]
[1770081847589,0.9169502,2350.4,2349.5,0.01288604]
[1770081849100,0.0011,2351.4,2350.6,0.01288604]
[1770081849994,0.0011,2351.6,2350.9,0.01288604]
[1770081851215,0.0011,2352.6,2351.3,0.01288604]
[1770081851497,5.73529319,2352.4,2350.9,5.74825247]
[1770081851680,5.73529319,2352.4,2351.0,0.01288604]
[1770081851868,0.0011,2351.5,2351.0,0.01288604]
[1770081852199,5.73529319,2352.4,2351.3,0.01288604]
[1770081852386,0.68409624,2352.5,2351.3,0.01288604]
[1770081852700,6.79906648,2352.6,2351.1,6.81158452]
[1770081852887,5.73639319,2352.6,2351.1,6.81158452]
[1770081853087,5.73639319,2352.6,2351.3,0.01288604]
[1770081853278,5.73639319,2352.6,2351.3,5.76113851]
[1770081854109,5.73639319,2352.6,2351.4,1.06319639]
[1770081854314,0.57363932,2352.5,2351.5,0.5328868]
[1770081855074,5.73529319,2352.4,2351.4,1.06319639]
[1770081855900,5.73529319,2352.4,2351.2,0.892]
[1770081856101,5.73529319,2352.2,2351.2,1.95528551]
[1770081856281,5.73529319,2352.2,2351.2,0.892]
[1770081856469,5.73529319,2352.2,2351.1,4.25332252]
[1770081856671,0.67980828,2352.1,2351.2,1.063273]
[1770081856872,6.41510147,2352.1,2351.2,1.063273]
[1770081857111,0.67980828,2352.1,2351.2,1.06325054]
[1770081857310,5.73529319,2352.4,2351.2,1.06325054]
[1770081857996,5.73529319,2352.4,2351.4,0.01288604]
[1770081858203,0.57363932,2352.5,2351.5,1.06315118]
[1770081858588,5.73529319,2352.4,2351.4,1.06316468]
[1770081860092,5.73529319,2352.4,2351.3,1.06320693]
[1770081860294,5.73529319,2352.4,2351.2,1.06325159]
[1770081860295,6.0218603,2352.2,2351.2,1.06325159]
[1770081860806,6.0218603,2352.2,2351.3,1.0632363]
[1770081861582,0.7371632,2352.3,2351.3,1.0632363]
[1770081863018,6.7590235,2352.3,2351.3,1.0632363]
[1770081863315,0.0011,2352.2,2351.3,1.0632363]
[1770081863504,0.67711235,2352.2,2351.4,0.53292008]
[1770081864309,6.0218603,2352.1,2351.2,1.06327906]
[1770081864509,6.0218603,2352.1,2351.4,1.06319095]
[1770081864809,6.0218603,2352.1,2350.9,4.25354982]
[1770081865108,6.0218603,2352.1,2351.3,1.06321687]
[1770081865509,6.0218603,2352.1,2351.3,1.06320296]
[1770081865710,6.69175757,2352.0,2351.3,1.06320296]
[1770081865918,6.69175757,2352.0,2351.1,1.06331001]
[1770081866317,6.69175757,2352.0,2350.7,4.25387541]
[1770081868488,6.69175757,2352.0,2350.9,1.06342251]
[1770081870011,6.0218603,2351.9,2350.9,1.06342251]
[1770081870213,6.69103606,2351.8,2350.9,1.06342251]
[1770081870716,6.69103606,2351.8,2350.6,1.06355824]
[1770081871717,6.0218603,2351.7,2350.6,1.06355824]
[1770081873551,7.08492747,2351.7,2350.6,1.06355824]
[1770081873699,7.08492747,2351.7,2350.3,1.06367692]
[1770081874012,6.0218603,2351.5,2349.7,1.48162683]
[1770081874321,6.0218603,2351.1,2349.6,1.06498083]
[1770081874526,6.0218603,2350.9,2349.9,4.2553859]
[1770081874732,6.0218603,2350.9,2349.8,1.06392033]
[1770081874919,6.7303843,2350.8,2349.8,2.02283723]
[1770081875240,6.7303843,2350.8,2349.8,1.06392033]
[1770081875397,6.7303843,2350.8,2350.5,0.001]
[1770081875604,6.7303843,2350.8,2349.8,1.06392033]
[1770081876321,6.7303843,2350.8,2349.6,0.001]
[1770081876531,6.7303843,2350.8,2349.7,1.06396389]
[1770081876733,6.7303843,2350.8,2349.6,0.001]
[1770081876734,6.0218603,2350.6,2349.6,0.001]
[1770081879124,6.0218603,2350.4,2349.6,0.001]
[1770081880508,6.0218603,2350.6,2349.6,0.001]
[1770081882832,7.08541938,2350.6,2349.6,0.001]
[1770081883636,6.0218603,2350.6,2349.6,0.001]
[1770081883944,6.0218603,2350.4,2349.6,0.001]
[1770081885154,6.0218603,2350.4,2349.4,0.001]
[1770081885441,6.0218603,2350.0,2349.1,0.001]
[1770081885687,1.06369399,2350.3,2349.1,0.001]
[1770081885688,6.0218603,2349.8,2349.1,0.001]
[1770081889453,7.08578729,2349.8,2349.1,0.001]
[1770081889656,6.0218603,2349.6,2349.1,0.001]
[1770081892137,1.22332927,2349.7,2349.1,0.001]
[1770081892961,6.83225598,2349.7,2349.1,0.001]
[1770081898270,5.60892671,2349.6,2349.1,0.001]
[1770081898487,6.67294398,2349.6,2348.8,0.001]
[1770081898684,5.60892671,2349.4,2348.8,0.001]
[1770081899538,5.60892671,2349.4,2348.4,0.001]
[1770081900248,5.60892671,2349.2,2348.4,0.001]
[1770081900596,5.60892671,2349.0,2348.4,0.001]
[1770081900746,5.60892671,2349.0,2348.0,0.001]
[1770081900747,5.60892671,2348.6,2346.6,6.06700504]
[1770081900945,5.60892671,2348.4,2346.9,4.26081482]
[1770081901276,5.60892671,2348.2,2347.4,1.06500283]
[1770081901573,8.10762517,2348.5,2347.6,1.06488904]
[1770081901780,6.50092671,2348.3,2347.1,0.01288604]
[1770081901963,6.50092671,2348.3,2347.4,4.25990345]
[1770081902267,7.28633266,2348.3,2347.5,1.49092293]
[1770081902771,5.60892671,2348.2,2347.5,0.42599035]
[1770081902959,5.60892671,2348.2,2347.4,1.06500742]
[1770081903165,5.60892671,2348.2,2347.2,1.06506527]
[1770081903366,5.60892671,2348.2,2347.3,1.06505119]
[1770081903764,5.60892671,2348.2,2347.2,1.0650788]
[1770081903950,5.60892671,2348.2,2347.1,1.06512184]
[1770081904274,5.60892671,2348.0,2346.5,7.13242161]
[1770081904478,5.60892671,2348.0,2346.7,0.01288604]
[1770081904680,5.60892671,2348.0,2346.5,7.13242161]
[1770081906050,0.83509667,2348.1,2346.9,6.06700504]
[1770081906258,7.28633266,2348.3,2347.2,7.13210388]
[1770081906980,5.60892671,2348.2,2347.2,1.06509884]
[1770081907301,2.74200997,2348.3,2347.3,0.01288604]
[1770081907302,1.67740595,2348.3,2347.3,0.01288604]
[1770081908460,1.67740595,2348.3,2347.4,1.06500809]
[1770081908656,0.892,2348.3,2347.4,7.13201313]
[1770081909291,0.892,2348.3,2347.4,1.06500809]
[1770081909292,6.50092671,2348.3,2347.4,1.06500809]
[1770081909492,0.892,2348.3,2347.4,1.06500809]
[1770081909656,0.892,2348.3,2347.5,6.07989108]
[1770081909856,5.60892671,2348.9,2347.5,6.07989108]
[1770081910055,0.7566212,2348.8,2347.6,0.71448992]
[1770081910674,0.7566212,2348.8,2347.7,1.064872]
[1770081911452,0.7566212,2348.8,2347.7,7.13187704]
[1770081911684,0.893,2349.0,2347.7,7.13187704]
[1770081912067,6.50192671,2349.0,2347.7,7.13187704]
[1770081912688,6.50192671,2349.0,2347.9,1.06478129]
[1770081913196,0.0011,2348.1,2347.9,1.06478129]
[1770081914998,0.0011,2348.1,2347.7,4.25912517]
[1770081915287,0.0011,2348.1,2347.7,1.064872]
[1770081916592,5.61002671,2348.1,2347.6,1.06490674]
[1770081916788,0.0011,2348.1,2347.6,1.06490674]
[1770081917187,0.0011,2348.1,2347.1,7.13214926]
[1770081917391,0.0011,2348.1,2347.2,1.22986478]
[1770081918866,5.61002671,2348.1,2347.1,1.06514422]
[1770081921295,0.0011,2348.1,2347.2,6.01698694]
[1770081922792,0.0011,2348.1,2347.5,6.01698694]
[1770081923400,0.0011,2348.1,2347.6,1.06491736]
[1770081925983,5.62546289,2348.1,2347.6,1.06491736]
[1770081926169,6.18811918,2348.1,2347.5,1.06493578]
[1770081926778,0.0011,2347.9,2347.5,1.06493578]
[1770081927401,0.0011,2347.9,2347.3,0.001]
[1770081928302,0.0011,2348.1,2347.4,0.01288604]
[1770081928472,0.0011,2348.1,2347.3,6.0051009]
[1770081928803,0.0011,2348.1,2347.4,0.61339613]
[1770081929372,0.0011,2348.1,2347.5,1.06496272]
[1770081930787,0.0011,2348.3,2347.7,0.01288604]
[1770081931488,0.0011,2348.3,2347.8,1.06482664]
[1770081931807,4.85488041,2348.9,2347.8,1.06482664]
[1770081932097,0.91840429,2348.8,2348.0,0.01288604]
[1770081932270,6.51736289,2349.0,2348.0,0.01288604]
[1770081932469,6.5426205,2348.9,2347.9,0.53370193]
[1770081932700,5.62436289,2348.7,2347.8,1.06482664]
[1770081932889,5.62436289,2348.5,2347.8,1.06482664]
[1770081933602,5.62436289,2348.5,2347.7,4.25930658]
[1770081933807,5.62436289,2348.8,2347.7,4.25930658]
[1770081933992,0.91838351,2348.7,2347.7,4.25930658]
[1770081934299,2.03856565,2349.0,2347.9,0.01288604]
[1770081934519,0.91845007,2348.9,2347.9,0.01288604]
[1770081934675,0.91845007,2348.8,2347.9,0.01288604]
[1770081934874,2.03856565,2349.0,2347.9,0.01288604]
[1770081935176,0.91843186,2348.9,2347.9,0.01288604]
[1770081935377,0.91843186,2348.8,2347.9,0.6808405]
[1770081935674,4.85598041,2349.3,2348.2,0.01288604]
[1770081935875,0.9185885,2349.2,2348.2,0.01288604]
[1770081936102,0.9185885,2349.1,2348.2,6.01698694]
[1770081936303,0.0011,2349.3,2348.5,0.01288604]
[1770081936474,0.0011,2349.3,2348.5,6.01698694]
[1770081936674,0.0011,2349.8,2349.0,6.01698694]
[1770081936913,2.03856565,2350.4,2349.3,0.01288604]
[1770081937209,6.77102854,2350.7,2349.1,6.25055724]
[1770081937405,1.5928448,2350.6,2349.3,0.2335703]
[1770081937605,0.67721285,2350.6,2349.5,1.06405618]
[1770081938006,0.0011,2350.7,2349.7,0.01288604]
[1770081938310,0.0011,2350.7,2349.7,0.90588604]
[1770081938488,0.0011,2350.7,2349.8,0.2335703]
[1770081938684,0.0011,2350.7,2349.7,0.893]
[1770081940006,0.0011,2350.7,2349.8,1.06392033]
[1770081940207,5.62546289,2350.7,2349.8,1.06392033]
[1770081940509,5.62546289,2350.7,2349.7,0.893]
[1770081940811,5.62546289,2350.7,2349.7,1.06395105]
[1770081940990,5.62546289,2350.7,2349.5,4.25610737]
[1770081941191,5.62546289,2350.7,2349.7,1.06396049]
[1770081941508,5.62546289,2350.5,2349.7,1.06396049]
[1770081941708,5.62546289,2350.5,2349.5,1.06402406]
[1770081941905,5.62436289,2350.4,2349.3,4.25647533]
[1770081942505,5.62436289,2350.4,2349.2,1.0641593]
[1770081945005,6.68801245,2350.4,2349.2,1.0641593]
[1770081945311,5.62436289,2350.2,2349.2,2.11122888]
[1770081945693,0.66891125,2350.3,2349.2,2.11122888]
[1770081945901,5.62546289,2350.5,2349.2,2.11122888]
[1770081946410,5.62546289,2350.5,2349.3,6.01698694]
[1770081946912,0.0011,2350.5,2349.4,6.2376712]
[1770081947110,5.62546289,2350.5,2349.5,1.06405618]
[1770081948407,5.62546289,2350.5,2349.4,1.06407095]
[1770081948581,5.62436289,2350.3,2349.4,1.06407095]
[1770081948782,5.62436289,2350.3,2349.3,4.25658587]
[1770081948783,5.62436289,2350.1,2348.4,6.0041009]
[1770081949014,5.62436289,2350.1,2348.6,4.25784621]
[1770081949015,5.62436289,2349.9,2348.6,4.25784621]
[1770081949310,5.62436289,2349.9,2348.8,1.06436142]
[1770081949513,5.62436289,2349.7,2348.8,1.06436142]
[1770081951307,5.62436289,2349.7,2348.6,4.25749318]
[1770081952134,0.66881927,2349.8,2348.6,4.25749318]
[1770081952715,6.60972053,2349.8,2348.6,4.25749318]
[1770081954325,0.0011,2349.6,2348.4,4.25785574]
[1770081954625,5.94200126,2349.6,2348.5,0.85157696]
[1770081956331,5.94200126,2349.6,2348.6,1.06446393]
[1770081959332,0.0011,2349.6,2348.6,6.80538456]
[1770081959501,0.0011,2349.6,2348.8,0.01288604]
[1770081960407,0.0011,2349.8,2348.9,7.93081891]
[1770081960612,5.94200126,2349.8,2349.0,1.03989405]
[1770081961118,5.94200126,2349.8,2348.8,4.25731193]
[1770081961119,5.94200126,2349.8,2348.8,1.06434848]
[1770081962148,7.00592609,2349.8,2348.8,1.06434848]
[1770081962326,7.00592609,2349.8,2348.5,4.25800824]
[1770081962327,7.00592787,2349.8,2348.5,4.25800824]
[1770081962632,5.94200126,2349.8,2348.5,9.99892887]
[1770081962801,5.94200126,2349.8,2348.5,4.25800824]
[1770081963005,5.94090126,2349.6,2348.6,0.53354035]
[1770081964401,5.94090126,2349.6,2348.7,1.06441861]
[1770081964834,7.00491256,2349.6,2348.4,1.06455134]
[1770081965005,5.94090126,2349.4,2348.2,1.06461756]
[1770081965205,5.94090126,2349.2,2348.2,1.06461756]
[1770081965408,5.94090126,2349.0,2348.3,1.06459974]
[1770081966936,5.94090126,2349.0,2348.9,0.001]
[1770081967137,5.94090126,2349.0,2348.1,4.25975815]
[1770081967340,6.53499139,2348.9,2348.6,0.001]
[1770081967718,6.53499139,2348.9,2348.1,0.001]
[1770081968117,0.59409013,2348.9,2348.1,0.001]
[1770081968320,1.14556565,2349.4,2348.2,5.75380667]
[1770081968530,0.91534706,2349.3,2348.2,5.75380667]
[1770081968720,7.13705581,2349.5,2348.2,5.75380667]
[1770081968920,7.13705581,2349.5,2348.5,0.01288604]
[1770081969208,1.19615455,2349.5,2348.5,0.01288604]
[1770081969409,0.0011,2349.6,2348.8,0.01288604]
[1770081969709,0.0011,2349.6,2348.9,0.01288604]
[1770081969936,0.0011,2349.6,2348.9,5.75380667]
[1770081970120,0.0011,2349.8,2349.0,0.24645634]
[1770081970435,0.0011,2349.8,2349.1,0.01288604]
[1770081970656,0.0011,2349.8,2349.0,0.24645634]
[1770081970846,0.0011,2349.8,2349.1,1.06423736]
[1770081972019,5.94200126,2350.5,2349.2,0.01288604]
[1770081972225,0.91581354,2350.4,2349.2,0.24645634]
[1770081972524,5.94200126,2350.5,2349.2,0.24645634]
[1770081972721,0.0011,2350.5,2349.2,5.98737697]
[1770081972921,0.0011,2350.5,2349.5,1.06405618]
[1770081973441,0.0011,2350.5,2349.6,0.2335703]
[1770081974645,5.94200126,2350.5,2349.5,1.06405618]
[1770081974816,5.94200126,2350.5,2349.4,4.25622472]
[1770081976268,5.94200126,2350.5,2349.5,0.2335703]
[1770081976473,0.0011,2350.7,2349.6,5.74092063]
[1770081976617,5.94090126,2351.8,2350.5,0.01288604]
[1770081976816,0.0011,2351.9,2350.9,1.06342251]
[1770081977115,0.0011,2351.9,2351.0,0.53299986]
[1770081978949,5.94200126,2351.9,2351.1,1.06333205]
[1770081980045,5.95150643,2351.7,2351.1,1.06333205]
[1770081980243,5.95150643,2351.7,2351.0,1.06334652]
[1770081981032,5.95150643,2351.7,2350.6,1.06355824]
[1770081981230,0.0011,2351.5,2350.7,0.62099677]
[1770081983039,0.0011,2351.5,2350.8,0.01288604]
[1770081983236,0.0011,2351.7,2351.0,0.2335703]
[1770081984948,0.0011,2352.2,2351.4,0.2335703]
[1770081985120,0.0011,2352.2,2351.5,1.06315118]
[1770081985521,0.0011,2352.2,2351.5,1.07603722]
[1770081986151,0.0011,2352.2,2351.5,1.06315118]
[1770081987055,0.0011,2352.2,2351.5,1.07603722]
[1770081987441,0.0011,2352.2,2351.5,1.06315118]
[1770081987755,5.95150643,2352.2,2351.5,1.06315118]
[1770081988662,0.0011,2352.2,2351.5,1.07603722]
[1770081989861,0.0011,2352.2,2351.5,1.06315118]
[1770081990830,0.0011,2352.2,2351.6,0.2335703]
[1770081991462,5.96329247,2353.8,2351.6,6.37408895]
[1770081991636,5.95040643,2353.8,2352.6,1.06265408]
[1770081992236,0.892,2354.6,2352.6,1.06265408]
[1770081992237,5.95040643,2354.2,2353.2,0.01288604]
[1770081992853,5.95040643,2354.2,2353.5,0.01288604]
[1770081993161,6.54544707,2354.2,2353.5,0.01288604]
[1770081993364,6.54544707,2354.2,2353.2,0.01288604]
[1770081994359,6.54544707,2354.2,2353.3,1.06233799]
[1770081995230,6.54544707,2354.2,2352.7,4.48400531]
[1770081995231,5.95040643,2354.1,2353.1,1.06239669]
[1770081995431,5.95040643,2354.1,2353.2,1.06236946]
[1770081995664,0.65454471,2354.0,2353.2,1.06236946]
[1770081996440,6.60495114,2354.0,2353.2,1.06236946]
[1770081997136,5.95040643,2354.4,2353.4,0.01288604]
[1770081998281,5.95040643,2354.4,2353.2,1.06236946]
[1770081999567,5.95040643,2354.4,2353.4,0.01288604]
[1770082001266,5.95040643,2354.4,2353.5,1.06224771]
[1770082001669,5.95040643,2354.4,2353.4,1.06226136]
[1770082001896,5.95040643,2354.2,2353.4,1.06226136]
[1770082003240,5.95040643,2354.2,2352.9,1.06251859]
[1770082003472,5.95040643,2354.2,2353.2,0.01288604]
[1770082003851,7.01236543,2354.2,2352.9,1.06251859]
[1770082004047,7.01236543,2354.2,2352.8,4.26241859]
[1770082004048,5.95040643,2354.0,2352.8,1.06254966]
[1770082004385,5.95040643,2353.8,2352.0,0.01288604]
[1770082004675,5.95040643,2353.6,2352.3,1.06276314]
[1770082004968,5.95040643,2353.4,2351.6,0.01288604]
[1770082005180,5.95040643,2353.4,2352.1,1.06287997]
[1770082005595,5.95040643,2353.4,2352.1,1.07576601]
[1770082005752,5.95040643,2353.4,2352.8,0.001]
[1770082008046,7.01270003,2353.4,2352.5,0.001]
[1770082008480,7.01270003,2353.4,2352.1,1.06287997]
[1770082008690,7.01270003,2353.4,2351.9,4.25180172]
[1770082008691,5.95040643,2353.2,2351.9,4.25180172]
[1770082008867,5.95040643,2353.2,2351.6,0.001]
[1770082009177,5.95040643,2352.8,2351.6,0.001]
[1770082009378,7.01298071,2352.8,2351.6,0.001]
[1770082010681,6.10531929,2352.6,2351.6,0.001]
[1770082010976,6.91120761,2352.6,2351.6,0.001]
[1770082011585,0.80588832,2352.6,2351.6,0.001]
[1770082011742,6.99631929,2352.8,2351.6,0.01388604]
[1770082011942,6.99631929,2352.8,2351.6,0.001]
[1770082013877,6.10531929,2352.7,2351.6,0.001]
[1770082015366,6.10531929,2353.2,2351.7,0.01288604]
[1770082015567,6.10531929,2353.2,2352.0,0.01288604]
[1770082015768,6.10531929,2353.2,2352.1,1.06287997]
[1770082015769,6.82846856,2353.1,2352.1,1.06287997]
[1770082016079,6.10531929,2353.0,2352.1,1.06287997]
[1770082017753,6.10531929,2353.0,2351.7,1.06306076]
[1770082019282,6.10531929,2353.0,2351.9,0.01288604]
[1770082019486,5.33638584,2353.6,2352.2,0.01288604]
[1770082019487,6.10531929,2353.4,2352.2,0.01288604]
[1770082019672,0.0011,2352.8,2352.2,0.01288604]
[1770082019880,0.0011,2352.8,2352.3,1.06278961]
[1770082021867,0.0011,2353.0,2352.4,0.2335703]
[1770082022176,0.98509848,2353.6,2352.4,0.2335703]
[1770082022485,0.98509848,2353.6,2352.5,0.01288604]
[1770082022856,7.09041777,2353.6,2352.5,0.01288604]
[1770082023062,6.10531929,2353.5,2352.3,1.06278961]
[1770082024356,6.10531929,2353.5,2352.1,4.25115844]
[1770082024357,7.16759042,2353.5,2352.1,4.25115844]
[1770082024565,6.10531929,2353.3,2352.1,5.23103516]
[1770082025671,1.24014993,2353.4,2352.1,5.23103516]
[1770082026003,6.10531929,2353.5,2352.1,5.23103516]
[1770082026392,6.10531929,2353.5,2352.2,0.24645634]
[1770082026698,0.98509848,2353.6,2352.2,6.33846083]
[1770082026869,0.98509848,2353.6,2352.2,6.32557479]
[1770082027069,0.98509848,2353.6,2352.2,6.33846083]
[1770082027295,0.98509848,2353.6,2352.4,0.2335703]
[1770082027608,0.98509848,2353.6,2352.7,0.2335703]
[1770082027791,0.0011,2354.0,2352.7,0.2335703]
[1770082027990,0.0011,2354.0,2352.6,6.09200449]
[1770082028189,0.0011,2354.0,2352.5,0.01288604]
[1770082028190,6.10641929,2354.0,2352.4,0.2335703]
[1770082028514,6.82216012,2353.9,2352.5,1.06269925]
[1770082028811,6.82216012,2353.9,2352.6,0.2335703]
[1770082030217,0.71684083,2353.9,2352.6,0.2335703]
[1770082030413,6.10641929,2354.0,2352.7,1.06260891]
[1770082030707,6.10641929,2354.0,2352.8,0.2335703]
[1770082031415,5.77270514,2354.6,2352.8,0.2335703]
[1770082031416,6.10531929,2354.6,2353.2,0.01288604]
[1770082031575,6.10531929,2354.6,2353.3,0.2335703]
[1770082031780,6.10531929,2355.0,2353.6,0.01288604]
[1770082031997,0.91287178,2354.9,2353.6,0.01288604]
[1770082032197,0.31747399,2355.1,2354.0,0.01288604]
[1770082032400,0.31747399,2355.1,2354.1,1.06197697]
[1770082032719,0.31747399,2355.1,2354.2,0.53227709]
[1770082034076,0.0011,2354.8,2354.2,0.53227709]
[1770082034283,0.0011,2354.8,2354.3,1.06188676]
[1770082034484,6.10641929,2354.8,2354.1,1.06195748]
[1770082034683,6.10641929,2354.8,2354.0,1.0619943]
[1770082034991,0.61064193,2354.7,2353.9,1.06203383]
[1770082035400,6.71596122,2354.7,2353.9,1.06203383]
[1770082035577,6.10531929,2354.5,2353.4,1.062261]
[1770082036016,6.10531929,2354.5,2353.5,1.06224454]
[1770082036379,0.61064193,2354.7,2353.2,0.01288604]
[1770082036592,0.61064193,2354.7,2353.2,0.99276276]
[1770082036593,6.71596122,2354.7,2353.2,0.99276276]
[1770082036924,6.10531929,2354.6,2353.2,0.97987672]
[1770082037277,6.10531929,2354.6,2353.1,4.24970754]
[1770082038518,6.10531929,2354.4,2352.8,0.2335703]
[1770082040029,6.10531929,2354.4,2352.7,4.2504268]